[Event "US Masters 2022"]
[Site "Charlotte"]
[Date "2022.11.27"]
[Round "8.14"]
[White "Ozenir, Ekin Baris"]
[Black "Theodorou, Nikolas"]
[Result "0-1"]
[ECO "E92"]
[WhiteElo "2352"]
[BlackElo "2598"]
[Annotator "TA"]
[PlyCount "72"]
[EventDate "2022.11.23"]
[EventType "swiss"]
[EventCountry "USA"]
[SourceTitle "playchess.com"]
[Source "ChessBase"]
[SourceQuality "1"]
[TimeControl "5400+30"]

{[%evp 15,72,16,26,0,0,0,20,21,51,30,43,18,41,38,27,18,74,79,194,33,41,33,27,39,67,-7,106,70,99,91,158,0,0,-11,-22,-8,62,57,37,61,41,-19,-19,-19,-19,-91,-92,-404,-376,-351,-304,-481,-483,-679,-603,-29986,-29987,-29992,-29993]} 1. Nf3 {[%emt 0:01:26]} Nf6 {[%emt 0:03:15]} 2. c4 {[%emt 0:00:19]} g6 {[%emt 0:00:04]} 3. Nc3 {[%emt 0:00:20]} Bg7 {[%emt 0:00:05]} 4. e4 {[%emt 0:00:03]} d6 {[%emt 0:00:03]} 5. d4 {[%emt 0:00:08]} O-O {[%emt 0:00:05]} 6. Be2 {[%emt 0:00:02]} e5 {[%emt 0:00:03]} 7. d5 {[%emt 0:00:15]} a5 {[%emt 0:00:08]} 8. h3 {[%emt 0:00:26]} Nh5 {[%emt 0:00:04]} 9. Nh2 {[%emt 0:01:31][%cal Bf3h2,Bh2g4,Bg4e3][%mdl 32] E92: King's Indian: Classical: 6 Be2 e5: 7 dxe5, 7 Be3 and Petrosian System without 7...Nbd7.} Nf4 {[%emt 0:00:46]} 10. Bf1 {[%emt 0:00:19]} Na6 {[%emt 0:01:02]} (10... f5 $5 {[%cal Rf5e4]}) 11. g3 {[%emt 0:00:55] Prevents f5. The position is equal.} Nh5 {[%emt 0:00:14]} 12. Be2 {[%emt 0:00:44] [#]} a4 $146 {[%emt 0:00:36]} ({Predecessor:} 12... Nf6 13. Ng4 Nd7 14. Nh6+ Kh8 15. h4 Ndc5 16. g4 f5 17. h5 fxe4 18. hxg6 Qf6 19. Nf5 Qxg6 20. Nxg7 Bxg4 {½-½ (38) Aronian,L (2797)-Radjabov,T (2734) Beijing 2014}) 13. Ng4 {[%emt 0:09:04]} (13. Nxa4 Nf6 $11) 13... a3 {[%emt 0:03:16] White must now prevent ...axb2.} 14. b3 {[%emt 0:07:32]} (14. bxa3 Kh8 $11) 14... Nb4 {[%emt 0:00:14][%cal Oh5f4]} 15. Bd2 {[%emt 0:03:15] Prevents Nf4.} c5 {[%emt 0:17:54]} (15... f5 $1 $11 16. Nh6+ Kh8) 16. Ne3 $36 {[%emt 0:04:04][%mdl 2048] White has strong initiative.} Kh8 {[%emt 0:02:43]} (16... Nf6 $16 {keeps fighting.}) 17. Nb5 $2 {[%emt 0:12:54]} ({White has to play} 17. Bxh5 $18 {Threatens to win with Be2.} gxh5 18. Qxh5) 17... Nf6 {[%emt 0:14:46]} 18. Qb1 {[%emt 0:07:43]} Qe7 {[%emt 0:04:09][%cal Of6e4]} 19. h4 {[%emt 0:09:13]} Bd7 {[%emt 0:00:05][%cal Of6e4]} 20. h5 {[%emt 0:02:42] [#]} (20. Nc3 $14) 20... Kg8 {[%emt 0:00:04]} (20... Nxe4 $1 $11 21. Qxe4 f5) 21. g4 {[%emt 0:00:27]} Ne8 {[%emt 0:01:15]} 22. Nc2 {[%emt 0:00:53]} Nf6 {[%emt 0:04:31]} (22... Bf6 $142) 23. f3 $2 {[%emt 0:05:16]} (23. Nbxa3 $2 Nxe4 24. Bxb4 cxb4 25. Nxb4 Nc3 $19) (23. Nxb4 $16 {[%cal Oh5h6] Hoping for h6!} cxb4 24. h6 (24. Bxb4 Bxb5 25. cxb5 gxh5 $16)) 23... Bxb5 $11 {[%emt 0:02:30]} 24. cxb5 {[%emt 0:00:08] [#]} Nfxd5 {[%emt 0:00:18]} 25. Bc4 {[%emt 0:05:28] [#]} Nf4 {[%emt 0:06:28]} (25... Qf6 $1 $11 26. Kf2 (26. Nxb4 Nxb4) 26... gxh5 27. Bxb4 (27. exd5 e4 $11) (27. g5 Qg6 $15) 27... hxg4 28. Bxd5 Qxf3+ 29. Kg1 Qg3+ 30. Kf1 Qd3+ 31. Kg2 Qf3+ 32. Kg1 Qg3+ 33. Kf1 Qf4+ 34. Kg1 Qg3+) 26. Nxb4 $14 {[%emt 0:04:06]} cxb4 {[%emt 0:00:08]} 27. hxg6 {[%emt 0:00:02]} hxg6 {[%emt 0:01:08]} 28. Qc2 {[%emt 0:01:02]} ({Better is} 28. Bxb4 $14 Bf6 29. Qc2) 28... d5 $11 {[%emt 0:04:11]} 29. exd5 {[%emt 0:08:33]} e4 {[%emt 0:00:06][%cal Be5e4,Be4e3][%mdl 32]} 30. Bxf4 {[%emt 0:02:07] [#]} (30. Qxe4 $11 {remains equal.} Rfe8 31. Qxe7 Rxe7+ 32. Kf2 Nxd5 33. Rac1 (33. Bxd5 Bxa1 34. Rxa1 Rd7 $17)) 30... Qf6 $1 $17 {[%emt 0:03:31][%cal Of6f4]} 31. Qc1 {[%emt 0:01:19][%mdl 8192] [#] Loses the game.} e3 $1 $19 {[%emt 0:07:59][%cal Of6f4]} 32. Ke2 {[%emt 0:03:43]} Qxf4 {[%emt 0:00:03]} 33. Rb1 {[%emt 0:00:07]} (33. Qf1 $142) 33... Rac8 {[%emt 0:00:11]} 34. d6 {[%emt 0:06:44]} (34. Rh3 $142 Rfd8 35. Qc2 Rxd5 36. Rd1 Rxd1 37. Qxd1) 34... Rfd8 {[%emt 0:02:12]} 35. Qc2 {[%emt 0:02:36]} Qg3 {[%emt 0:07:26] Prevents Rh3.} 36. Kxe3 {[%emt 0:00:59]} Re8+ {[%emt 0:00:53][%mdl 64] Decoy.   Weighted Error Value: White=0.73/Black=0.26 (precise)} 0-1

[Event "US Masters 2022"]
[Site "Charlotte"]
[Date "2022.11.27"]
[Round "8.15"]
[White "Jacobson, Aaron"]
[Black "Mishra, Abhimanyu"]
[Result "1/2-1/2"]
[ECO "D44"]
[WhiteElo "2351"]
[BlackElo "2549"]
[Annotator "TA"]
[PlyCount "82"]
[EventDate "2022.11.23"]
[EventType "swiss"]
[EventCountry "USA"]
[SourceTitle "playchess.com"]
[Source "ChessBase"]
[SourceQuality "1"]
[TimeControl "5400+30"]

{[%evp 29,82,40,60,64,56,25,64,56,37,60,52,25,53,37,38,40,52,0,0,0,0,21,0,35,47,0,0,0,0,0,0,0,0,0,0,0,0,0,0,0,0,0,0,0,0,0,0,0,0,0,0,0,0,0,0]} 1. d4 {[%emt 0:10:40]} d5 {[%emt 0:00:08]} 2. c4 {[%emt 0:00:05]} c6 {[%emt 0:00:06]} 3. Nf3 {[%emt 0:01:13]} Nf6 {[%emt 0:00:09]} 4. Nc3 {[%emt 0:00:10]} e6 {[%emt 0:00:11]} 5. Bg5 {[%emt 0:00:26]} dxc4 {[%emt 0:00:30]} 6. e4 {[%emt 0:00:47][%cal Be2e4,Be4e5][%mdl 32]} b5 {[%emt 0:00:15]} 7. e5 {[%emt 0:00:13]} h6 {[%emt 0:00:05]} 8. Bh4 {[%emt 0:00:06]} g5 {[%emt 0:00:09]} 9. Nxg5 {[%emt 0:00:28]} hxg5 {[%emt 0:00:11]} 10. Bxg5 {[%emt 0:00:04]} Be7 {[%emt 0:00:07]} 11. exf6 {[%emt 0:00:12]} Bxf6 {[%emt 0:00:07]} 12. Bxf6 {[%emt 0:00:47]} Qxf6 {[%emt 0:00:07]} 13. g3 {[%emt 0:01:26]} Bb7 {[%emt 0:00:08]} 14. Bg2 {[%emt 0:00:05]} Na6 {[%emt 0:00:06]} 15. Ne4 {[%emt 0:00:16]} Qe7 {[%emt 0:00:08]} 16. O-O {[%emt 0:00:11] D44: Semi-Slav: Botvinnik System.} O-O-O {[%emt 0:00:49]} 17. h4 {[%emt 0:00:15]} c5 {[%emt 0:00:32]} 18. a4 $1 {[%emt 0:00:14] White is slightly better.} Rxd4 {[%emt 0:00:42]} (18... cxd4 $2 19. axb5 Bxe4 20. Bxe4 $16) 19. Qe2 {[%emt 0:00:06]} b4 {[%emt 0:00:11]} 20. Rad1 {[%emt 0:00:06]} Qc7 {[%emt 0:01:02]} 21. Ng5 {[%emt 0:00:29]} Bxg2 {[%emt 0:01:23]} 22. Kxg2 {[%emt 0:00:05]} Qc6+ {[%emt 0:00:16]} 23. f3 {[%emt 0:00:20]} f6 {[%emt 0:06:08]} 24. Qxe6+ {[%emt 0:00:22]} (24. Nxe6 $2 Rxd1 25. Rxd1 Re8 $17) (24. Ne4 {seems wilder.} e5 25. Rc1 f5 26. Nf2) 24... Qxe6 {[%emt 0:01:31]} 25. Nxe6 {[%emt 0:00:11]} Rxd1 {[%emt 0:00:04]} 26. Rxd1 $11 {[%emt 0:00:04][%mdl 4096] Endgame KRN-KRN} b3 {[%emt 0:00:31]} 27. Rc1 {[%emt 0:00:25]} (27. f4 $14) 27... Re8 $1 {[%emt 0:00:08] The position is equal.} 28. Nf4 {[%emt 0:00:04][%cal Og2h3]} Rd8 {[%emt 0:00:09] Hoping for ...Rd2+.} 29. Rxc4 {[%emt 0:00:04]} Rd2+ {[%emt 0:00:46]} 30. Kh3 {[%emt 0:00:03]} Rxb2 {[%emt 0:00:23]} 31. Nd3 {[%emt 0:00:04][%csl LRb2,LRc5]} Ra2 {[%emt 0:01:21] Threatens to win with ...b2.} 32. Nxc5 {[%emt 0:00:09]} Rc2 $1 {[%emt 0:00:12]} 33. Rxc2 {[%emt 0:00:03]} bxc2 {[%emt 0:00:06] KN-KN} 34. Nd3 {[%emt 0:00:02] h5 is the strong threat.} Nc5 {[%emt 0:01:26][%mdl 64] [#] Prevents h5.} 35. Nc1 {[%emt 0:00:04] Black must now prevent Kg4.} Kd7 {[%emt 0:05:02]} 36. Kg4 {[%emt 0:00:17] [#] aiming for Kf5.} Ke6 $146 {[%emt 0:06:00]} ({Predecessor:} 36... Ke7 37. Kf4 Nxa4 38. Ke3 {½-½ (38) De Mingo Matias,J (2278)-Landero Luna,V (2260) ICCF email 2017}) 37. Kf4 {[%emt 0:00:10]} Nxa4 {[%emt 0:00:52]} 38. Ke3 {[%emt 0:00:05]} Nb6 {[%emt 0:00:50]} 39. Kd3 {[%emt 0:00:19][%cal Oc1b3]} Nd7 {[%emt 0:00:57]} 40. Kxc2 {[%emt 0:00:06]} Ne5 $1 {[%emt 0:00:34]} 41. f4 {[%emt 0:00:05]} Ng4 {[%emt 0:01:28] Weighted Error Value: White=0.05 (flawless) /Black=0.01 (flawless)} 1/2-1/2

[Event "US Masters 2022"]
[Site "Charlotte"]
[Date "2022.11.27"]
[Round "8.16"]
[White "Marek, Matyas"]
[Black "Brodsky, David"]
[Result "0-1"]
[ECO "B51"]
[WhiteElo "2346"]
[BlackElo "2509"]
[Annotator "TA"]
[PlyCount "64"]
[EventDate "2022.11.23"]
[EventType "swiss"]
[EventCountry "USA"]
[SourceTitle "playchess.com"]
[Source "ChessBase"]
[SourceQuality "1"]
[TimeControl "5400+30"]

{[%evp 9,64,11,20,19,18,23,34,11,19,10,11,19,24,0,0,-31,-29,-25,-35,-27,-8,-35,-37,-36,-11,-32,-14,-19,-16,-176,-175,-226,-48,-58,-46,-62,-44,-53,-44,-44,-58,-58,102,-68,-58,-587,-588,-577,-478,-471,-450,-5385,-2506,-29965,-29947,-29987,-833]} 1. e4 {[%emt 0:01:04] Sagar Shah} c5 {[%emt 0:00:12]} 2. Nf3 {[%emt 0:00:03]} d6 {[%emt 0:00:03]} 3. Bb5+ {[%emt 0:00:03]} Nd7 {[%emt 0:00:09]} 4. a4 {[%emt 0:00:05]} Ngf6 {[%emt 0:00:20]} 5. Nc3 {[%emt 0:00:05]} g6 {[%emt 0:00:13]} 6. O-O {[%emt 0:00:06] B51: Sicilian: Moscow Variation (3 Bb5+) without 3...Bd7.} Bg7 {[%emt 0:00:19]} 7. a5 {[%emt 0:00:28]} O-O {[%emt 0:00:19]} 8. d3 {[%emt 0:07:51] White is slightly better.} a6 {[%emt 0:07:55]} 9. Bc4 {[%emt 0:00:32]} Nb8 {[%emt 0:13:49]} 10. e5 {[%emt 0:28:57]} Ne8 {[%emt 0:01:09]} 11. Nd5 {[%emt 0:06:55]} (11. Qe2 $5 {[%cal Rc3d5]}) 11... Nc6 {[%emt 0:11:17]} 12. Nb6 {[%emt 0:02:21]} (12. c3 $5 {[%cal Re5d6]}) 12... Rb8 {[%emt 0:00:34]} 13. Nxc8 {[%emt 0:04:54] [#]} Qxc8 $146 {[%emt 0:00:32]} ({Predecessor:} 13... Rxc8 14. e6 f6 15. Qe1 d5 16. Bb3 Qd6 17. Ra4 Nc7 18. Bf4 Ne5 19. Bxe5 fxe5 {0-1 (34) Praggnanandhaa,R (2529)-So,W (2780) Leon 2018 CBM 185 [Sagar Shah]}) 14. exd6 {[%emt 0:02:50]} Nxd6 {[%emt 0:00:09]} 15. Bb3 {[%emt 0:00:26]} Qc7 {[%emt 0:01:41]} 16. Qe1 {[%emt 0:02:06]} Rbd8 {[%emt 0:11:43]} 17. Ra2 {[%emt 0:01:41]} Rfe8 {[%emt 0:02:21]} 18. Bd2 {[%emt 0:01:36]} e5 {[%emt 0:02:06][%cal Be7e5,Be5e4][%mdl 32]} 19. Ng5 $2 {[%emt 0:05:00] [#] Inhibits e4.} (19. Bg5 $11) 19... e4 $1 $19 {[%emt 0:19:30] ...exd3 is the strong threat.} 20. Bf4 {[%emt 0:20:21] [#]} (20. dxe4 h6 21. Nf3 c4 $17) (20. Qb1 $142) 20... Be5 $2 {[%emt 0:01:46]} ({Black should play} 20... exd3 $1 $19 21. Bxf7+ (21. Bxd6 $2 Rxe1 22. Bxc7 d2 $19) 21... Nxf7 22. Bxc7 Rxe1 23. Rxe1 Rc8 24. cxd3 (24. Nxf7 $2 Rxc7 25. Nd6 dxc2 $19) 24... Nxg5) 21. Bxe5 $15 {[%emt 0:03:07]} Rxe5 {[%emt 0:00:26]} (21... Nxe5 {simplifies} 22. Ba4 Re7 23. Nxe4 Nxe4 24. dxe4 Nc4) 22. f4 $1 {[%emt 0:00:10]} (22. Nxe4 $2 c4 23. Ba4 (23. Nf6+ $2 Kg7 $19) 23... Nxe4 24. dxe4 Rxa5 25. Bxc6 Rxa2 $19) 22... exf3 {[%emt 0:06:36]} 23. Qh4 {[%emt 0:00:28]} f2+ {[%emt 0:00:21]} 24. Rxf2 {[%emt 0:03:20]} (24. Qxf2 $2 {perishes.} Rxg5 25. Raa1 Rf5 $19) 24... Re1+ {[%emt 0:00:06]} 25. Rf1 {[%emt 0:00:02]} Rxf1+ {[%emt 0:00:04]} 26. Kxf1 {[%emt 0:00:03]} h5 {[%emt 0:00:40] Strongly threatening ...Nf5.} 27. g4 {[%emt 0:01:19][%mdl 8192] Inhibits Nf5.} ({Better is} 27. Qf4 $15 Qe7 28. Ra1) 27... c4 $19 {[%emt 0:01:57]} ({Worse is} 27... Nxa5 28. Bxf7+ Nxf7 29. Ne6 $11) 28. dxc4 {[%emt 0:00:41] [#]} Nxc4 $1 {[%emt 0:04:40][%mdl 576]} 29. gxh5 {[%emt 0:01:59]} Rd1+ {[%emt 0:04:23]} (29... N4xa5 $2 30. Bxf7+ $18) 30. Ke2 {[%emt 0:03:02]} (30. Kg2 $142 Ne3+ 31. Kf2) 30... Rd4 {[%emt 0:01:37]} 31. Qg3 {[%emt 0:03:36]} Qe7+ {[%emt 0:00:20]} 32. Kf1 {[%emt 0:00:33] [#]} Rg4 $3 {[%emt 0:01:51][%mdl 512] Weighted Error Value: White=0.79/Black=0.11 (very precise)} 0-1

[Event "US Masters 2022"]
[Site "Charlotte"]
[Date "2022.11.27"]
[Round "8.17"]
[White "Castro Torres, Jose Luis"]
[Black "Grinberg, Eyal"]
[Result "0-1"]
[ECO "D52"]
[WhiteElo "2342"]
[BlackElo "2491"]
[Annotator "TA"]
[PlyCount "78"]
[EventDate "2022.11.23"]
[EventType "swiss"]
[EventCountry "USA"]
[SourceTitle "playchess.com"]
[Source "ChessBase"]
[SourceQuality "1"]
[TimeControl "5400+30"]

{[%evp 15,78,31,57,56,54,55,52,54,45,37,38,48,28,8,23,22,22,15,30,2,17,8,12,-17,-24,-25,-15,-50,-45,-41,0,0,0,0,0,0,0,0,0,0,0,0,0,0,0,-37,-16,-116,-108,-299,-284,-303,-287,-1600,-1507,-1832,-743,-4727,-2925,-6094,-6094,-6079,-5189,-5165,-5128]} 1. d4 {[%emt 0:05:47]} d5 {[%emt 0:02:38]} 2. c4 {[%emt 0:00:27]} c6 {[%emt 0:00:05]} 3. Nf3 {[%emt 0:00:06][%cal Bg1f3,Bf3d2,Bd2b3][%mdl 32]} Nf6 {[%emt 0:00:04]} 4. Nc3 {[%emt 0:00:06]} e6 {[%emt 0:00:03]} 5. Bg5 {[%emt 0:00:07]} Nbd7 {[%emt 0:00:04][%cal Bb8d7,Bd7f6,Bf6e4][%mdl 32]} 6. e3 {[%emt 0:00:35]} Qa5 {[%emt 0:00:05]} 7. Nd2 {[%emt 0:02:16]} Bb4 {[%emt 0:00:06]} 8. Qc2 {[%emt 0:06:12]} e5 {[%emt 0:08:13]} 9. Bxf6 {[%emt 0:18:11] D52: Queen's Gambit Declined: Cambridge Springs Variation.} Nxf6 {[%emt 0:00:31]} 10. dxe5 {[%emt 0:03:40]} Ne4 {[%emt 0:00:41] [#]} 11. Nb3 $146 {[%emt 0:31:13] White is slightly better.} ({Predecessor:} 11. cxd5 Nxc3 12. bxc3 Bxc3 13. Rc1 Bxd2+ 14. Qxd2 Qxd5 15. Qxd5 cxd5 16. Rc7 O-O 17. Be2 {½-½ (26) Bluvshtein,M (2520)-Miton,K (2648) Montreal 2007}) 11... Bxc3+ {[%emt 0:11:52]} 12. bxc3 {[%emt 0:00:06]} Qxc3+ {[%emt 0:00:06]} 13. Qxc3 {[%emt 0:00:05]} Nxc3 {[%emt 0:00:04]} 14. cxd5 {[%emt 0:00:14]} Nxd5 {[%emt 0:00:30]} 15. Bc4 {[%emt 0:01:48]} Nb6 {[%emt 0:00:28]} 16. Be2 {[%emt 0:03:04]} Be6 {[%emt 0:03:46]} 17. Nc5 {[%emt 0:05:08]} O-O-O {[%emt 0:01:53]} 18. Nxe6 {[%emt 0:01:14]} fxe6 {[%emt 0:00:11]} 19. O-O {[%emt 0:00:06]} Rd2 {[%emt 0:02:59]} 20. Bg4 {[%emt 0:01:16]} Re8 {[%emt 0:00:07]} 21. f4 {[%emt 0:00:07]} Nd5 {[%emt 0:02:47]} 22. Rf2 {[%emt 0:00:18]} Rxf2 {[%emt 0:02:01]} 23. Kxf2 $15 {[%emt 0:00:05][%mdl 4096] Endgame KRB-KRN} b5 {[%emt 0:00:39]} 24. Bf3 {[%emt 0:06:32]} Kc7 {[%emt 0:05:26]} 25. Bxd5 {[%emt 0:00:21]} exd5 $11 {[%emt 0:05:36] KR-KR} 26. Rd1 {[%emt 0:00:06]} Rd8 {[%emt 0:01:50]} 27. g4 {[%emt 0:02:05]} a5 {[%emt 0:05:23]} 28. f5 {[%emt 0:04:22]} b4 {[%emt 0:01:46]} 29. h4 {[%emt 0:07:31]} a4 {[%emt 0:03:51]} 30. Kf3 {[%emt 0:01:02]} c5 {[%emt 0:08:57] White should prevent ...c4.} 31. g5 {[%emt 0:00:17] [#]} (31. Rc1 $1 $11 {keeps the balance.}) 31... c4 $1 $17 {[%emt 0:05:07] And now ...b3 would win.} 32. f6 $2 {[%emt 0:00:05] This costs White the game.} (32. Ke2 $17) 32... gxf6 $19 {[%emt 0:03:13]} 33. exf6 {[%emt 0:01:47]} ({Stronger than} 33. gxf6 b3 34. Ke2 Rb8 35. axb3 axb3 $17) 33... b3 {[%emt 0:01:08] aiming for ...c3.} 34. axb3 $2 {[%emt 0:00:04]} (34. Ke2 Kd6 35. Kd2) 34... cxb3 {[%emt 0:04:51] White must now prevent ...b2. Black is clearly winning.} 35. Ke2 {[%emt 0:00:37]} Kd6 {[%emt 0:03:58]} (35... a3 $142 36. Kd3 Rb8) 36. e4 {[%emt 0:00:26]} b2 {[%emt 0:01:25] [#] Strongly threatening ...a3.} 37. Rxd5+ {[%emt 0:00:07]} Kc6 {[%emt 0:00:49]} 38. Rxd8 {[%emt 0:01:00]} b1=Q {[%emt 0:00:07]} (38... b1=B {is a self mate.} 39. f7 Kc5 40. f8=Q+ Kc4 41. Rc8+ Kb3 42. Rb8+ Ka2 43. Qb4) 39. Kf3 {[%emt 0:00:06]} a3 {[%emt 0:00:38] Weighted Error Value: White=0.95/Black=0.23 (precise)} 0-1

[Event "US Masters 2022"]
[Site "Charlotte"]
[Date "2022.11.27"]
[Round "8.18"]
[White "Nagy, Gabor"]
[Black "Narayanan, Samrug"]
[Result "1-0"]
[ECO "D35"]
[WhiteElo "2482"]
[BlackElo "2340"]
[Annotator "TA"]
[PlyCount "91"]
[EventDate "2022.11.23"]
[EventType "swiss"]
[EventCountry "USA"]
[SourceTitle "playchess.com"]
[Source "ChessBase"]
[SourceQuality "1"]
[TimeControl "5400+30"]

{[%evp 9,91,14,18,12,16,0,0,0,2,0,10,0,0,0,0,-12,0,0,24,0,22,8,4,9,39,33,130,121,222,225,355,370,352,361,344,305,392,388,441,443,612,621,880,861,835,591,564,555,539,526,1005,517,604,607,620,601,591,449,521,510,546,552,638,592,542,498,498,498,498,491,496,475,568,566,533,507,533,475,8695,7036,6079,5089,1583,1170]} 1. d4 {[%emt 0:06:14]} d5 {[%emt 0:00:05]} 2. c4 {[%emt 0:00:34]} e6 {[%emt 0:00:05]} 3. Nc3 {[%emt 0:00:17]} Be7 {[%emt 0:00:05]} 4. Bf4 {[%emt 0:02:00]} Nf6 {[%emt 0:00:07]} 5. e3 {[%emt 0:00:32]} O-O {[%emt 0:00:08]} 6. a3 {[%emt 0:00:18] D35: Queen's Gambit Declined: Exchange Variation.} b6 {[%emt 0:03:25]} 7. Nb5 {[%emt 0:01:04]} Na6 {[%emt 0:00:44]} 8. Nf3 {[%emt 0:01:13] The position is equal.} Bb7 {[%emt 0:03:26]} 9. Rc1 {[%emt 0:00:24]} c6 {[%emt 0:01:57]} 10. Nc3 {[%emt 0:00:14]} Nc7 {[%emt 0:01:00]} 11. Bd3 {[%emt 0:06:09]} dxc4 {[%emt 0:01:08]} 12. Bxc4 {[%emt 0:00:14]} Ncd5 {[%emt 0:00:03] [#]} 13. Nxd5 $146 {[%emt 0:01:41]} ({Predecessor:} 13. Be5 Nxc3 14. Rxc3 c5 15. O-O Ne4 16. Rd3 Qc8 17. Qc2 a6 18. Rdd1 cxd4 19. Rxd4 b5 20. Bd3 Qxc2 21. Bxc2 Nf6 22. Rfd1 Rac8 23. Bb1 Rfd8 {½-½ (23) Swiercz,D (2611)-Azarov,S (2618) Czech Republic 2012}) 13... Nxd5 {[%emt 0:01:01]} 14. Bg3 {[%emt 0:00:35]} c5 {[%emt 0:00:30]} 15. dxc5 {[%emt 0:00:31]} Bxc5 {[%emt 0:00:12]} 16. Qe2 {[%emt 0:00:18]} Rc8 {[%emt 0:05:05][%cal Ob6b5] White must now prevent ...b5!} 17. O-O {[%emt 0:02:00]} Qe7 {[%emt 0:05:47] [#] White leaves nothing to chance now.} (17... a5 $14) 18. e4 $1 $16 {[%emt 0:02:10]} Nc7 {[%emt 0:04:11] [#]} (18... b5 $16) 19. b4 $1 $18 {[%emt 0:00:30]} b5 {[%emt 0:00:09]} (19... Bd6 $142 20. e5 Bxb4) 20. bxc5 {[%emt 0:01:03]} (20. Bxb5 Nxb5 21. Qxb5 Bb6 $14) 20... bxc4 {[%emt 0:00:07]} 21. Bd6 {[%emt 0:00:08]} (21. Qxc4 Ba6 22. Qb3 Bxf1 $14) ({Not} 21. Rxc4 e5 $16) 21... Qe8 {[%emt 0:00:54]} 22. Qe3 {[%emt 0:03:04] Inhibits f5.} (22. Qxc4 Ba6 23. Qb4 Bxf1 $16) 22... Ba6 {[%emt 0:01:16]} 23. Rfd1 {[%emt 0:01:32] Prevents f6.} f6 {[%emt 0:02:22]} 24. Bxf8 {[%emt 0:00:16] White is clearly winning.} Qxf8 {[%emt 0:00:03]} 25. c6 {[%emt 0:00:47]} Ne8 {[%emt 0:03:22]} 26. Qxa7 {[%emt 0:01:38]} Rxc6 {[%emt 0:00:06]} 27. e5 {[%emt 0:03:01]} Bb5 {[%emt 0:01:32][%cal Ba6b5,Bb5a4,Ba4b3][%mdl 32]} 28. Nd4 {[%emt 0:02:43]} Rc7 {[%emt 0:00:34]} 29. Qb6 {[%emt 0:00:17]} Ba4 {[%emt 0:02:41]} 30. Re1 {[%emt 0:00:13]} Qf7 {[%emt 0:02:23]} 31. exf6 {[%emt 0:00:59]} Nxf6 {[%emt 0:00:18]} 32. Nxe6 {[%emt 0:00:37]} Rc8 {[%emt 0:00:12] Inhibits Qb8.} 33. h3 {[%emt 0:02:38]} c3 {[%emt 0:01:12]} 34. Qd4 {[%emt 0:01:46][%csl LRa4,LRc3]} Bb3 {[%emt 0:00:31]} 35. Nc5 {[%emt 0:00:47]} ({Weaker is} 35. Rxc3 Rxc3 36. Qxc3 Bxe6 $18) 35... Qc4 {[%emt 0:00:10]} 36. Qxc4+ {[%emt 0:01:52]} Bxc4 {[%emt 0:00:05]} 37. Rxc3 {[%emt 0:00:57]} Rxc5 {[%emt 0:00:03]} 38. Rec1 {[%emt 0:00:07]} Ra5 {[%emt 0:00:02]} 39. Rxc4 {[%emt 0:00:07]} Rxa3 {[%emt 0:00:03][%mdl 4096] Endgame KRR-KRN} 40. Rc7 {[%emt 0:00:49]} h6 {[%emt 0:00:33]} 41. Rb7 {[%emt 0:00:19]} Ra5 {[%emt 0:00:09]} 42. Kh2 {[%emt 0:01:48]} h5 {[%emt 0:00:35]} 43. Rcc7 {[%emt 0:01:13]} Rg5 {[%emt 0:00:04]} (43... Ne8 $142 44. Rd7 Ra6) 44. f4 {[%emt 0:00:20]} Rg6 {[%emt 0:00:04]} 45. Rc8+ {[%emt 0:00:11]} Kh7 {[%emt 0:00:06]} 46. Rbb8 {[%emt 0:00:06] Weighted Error Value: White=0.38/Black=0.38} 1-0